Workbook

Sheet Sheet1
B1: l'Hopital's Rule: ∞/∞ as x → ∞
B3: This DIGMath spreadsheet provides a
B4: graphical representation of l'Hopital's Rule for
B5: finding the limit of the indeterminate form ¥/¥
C6: lim x → a f(x) / g(x)
B7: where lim x → ¥ f(x) = lim x → ¥ g(x) = ¥
A11: Enter the numerator function: f(x) = | E11: x^3
C12: =IF(Sheet2!D2<10^5,"That may not become infinite as x → infinity","") -> 
A13: Enter the denominator function: g(x) = | E13: x^3+50*x
I17: The graphs of the ratios f(x) / g(x) and f '(x) / g'(x)
A19: The interval for x starts at x = 1 | I19: Now trace along the curves:
A20: and extends to xMax = | D20: =C21 -> 50 | I20: x = | J20: =Sheet2!A15+K20*dx -> 36.400 | K20: 364
C21: 50 | I21: f / g = | J21: =LOOKUP(J$20,Sheet2!C3:C504,Sheet2!F3:F504) -> 0.963
I22: f '/g ' = | J22: =LOOKUP(J$20,Sheet2!C4:C505,Sheet2!I4:I505) -> 0.988
A24: Click each item below for suggestions and investigations
C25: Item 1
C26: Item 2
C27: Item 3
C28: Item 4
C29: Item 5
A32: To access/download all the DIGMath Apps for Calculus
A33: Click this link: | C33: DIGMath for Calculus
A35: Created by: Sheldon P. Gordon
A36: Farmingdale State College
A37: Development of this module was supported by the
A38: NSF's Division of Undergraduate Education
A39: under grants DUE-0310123 and DUE-0442160.

Sheet Sheet2
C1: x | D1: y = f(x) | E1: y = g(x) | F1: f(x)/g(x) | G1: f' | H1: g' | I1: f'/g/ | J1: Tracing points | M1: log x
C2: 1000 | D2: =x^3 -> 1000000000 | E2: =x^3+50*x -> 1000050000 | M2: =LOG(C2) -> 3
C3: =a -> 0 | D3: 0 | E3: 0 | F3: =D3/E3 ->  | G3: =(D4-D3)/dx -> 0.01 | H3: =(E4-E3)/dx -> 50.01 | I3: =G3/H3 -> 0.000199960008 | J3: 0 | K3: 0 | M3: =LOG(C3) -> 
C4: =C3+dx -> 0.1 | D4: 0.001 | E4: 5.001 | F4: =D4/E4 -> 0.000199960008 | G4: 0.07 | H4: 50.07 | I4: =G4/H4 -> 0.00139804274 | J4: =Sheet1!J$20 -> 36.4 | K4: =Sheet1!J21 -> 0.9634420081 | M4: -1 | N4: =LOG(J4) -> 1.561101384
C5: 0.2 | D5: 0.008 | E5: 10.008 | F5: 0.0007993605116 | G5: 0.19 | H5: 50.19 | I5: 0.003785614664 | J5: on curve | M5: -0.6989700043
C6: 0.3 | D6: 0.027 | E6: 15.027 | F6: 0.001796765822 | G6: 0.37 | H6: 50.37 | I6: 0.007345642247 | M6: -0.5228787453
C7: 0.4 | D7: 0.064 | E7: 20.064 | F7: 0.003189792663 | G7: 0.61 | H7: 50.61 | I7: 0.01205295396 | J7: 0 | K7: 0 | M7: -0.3979400087
C8: 0.5 | D8: 0.125 | E8: 25.125 | F8: 0.004975124378 | G8: 0.91 | H8: 50.91 | I8: 0.01787468081 | J8: =Sheet1!J$20 -> 36.4 | K8: =Sheet1!J22 -> 0.9875435043 | M8: -0.3010299957 | N8: =N4 -> 1.561101384
C9: 0.6 | D9: 0.216 | E9: 30.216 | F9: 0.00714853058 | G9: 1.27 | H9: 51.27 | I9: 0.02477082114 | J9: on derivatives | M9: -0.2218487496
C10: 0.7 | D10: 0.343 | E10: 35.343 | F10: 0.009704892058 | G10: 1.69 | H10: 51.69 | I10: 0.03269491198 | M10: -0.15490196
C11: 0.8 | D11: 0.512 | E11: 40.512 | F11: 0.01263823065 | G11: 2.17 | H11: 52.17 | I11: 0.04159478628 | M11: -0.09691001301
A12: delta x = | B12: =(Sheet1!D20-Sheet2!A15)/500 -> 0.1 | C12: 0.9 | D12: 0.729 | E12: 45.729 | F12: 0.01594174375 | G12: 2.71 | H12: 52.71 | I12: 0.05141339404 | M12: -0.04575749056
C13: 1 | D13: 1 | E13: 51 | F13: 0.01960784314 | G13: 3.31 | H13: 53.31 | I13: 0.06208966423 | M13: -4.821637333e-17
C14: 1.1 | D14: 1.331 | E14: 56.331 | F14: 0.02362819762 | G14: 3.97 | H14: 53.97 | I14: 0.07355938484 | M14: 0.04139268516
A15: 0 | B15: =a | C15: 1.2 | D15: 1.728 | E15: 61.728 | F15: 0.02799377916 | G15: 4.69 | H15: 54.69 | I15: 0.08575607972 | M15: 0.07918124605
C16: 1.3 | D16: 2.197 | E16: 67.197 | F16: 0.03269491198 | G16: 5.47 | H16: 55.47 | I16: 0.09861186227 | M16: 0.1139433523
C17: 1.4 | D17: 2.744 | E17: 72.744 | F17: 0.0377213241 | G17: 6.31 | H17: 56.31 | I17: 0.112058249 | M17: 0.1461280357
C18: 1.5 | D18: 3.375 | E18: 78.375 | F18: 0.04306220096 | G18: 7.21 | H18: 57.21 | I18: 0.1260269184 | M18: 0.1760912591
C19: 1.6 | D19: 4.096 | E19: 84.096 | F19: 0.04870624049 | G19: 8.17 | H19: 58.17 | I19: 0.140450404 | M19: 0.2041199827
C20: 1.7 | D20: 4.913 | E20: 89.913 | F20: 0.05464170921 | G20: 9.19 | H20: 59.19 | I20: 0.1552627133 | M20: 0.2304489214
C21: 1.8 | D21: 5.832 | E21: 95.832 | F21: 0.06085649887 | G21: 10.27 | H21: 60.27 | I21: 0.1703998673 | M21: 0.2552725051
C22: 1.9 | D22: 6.859 | E22: 101.859 | F22: 0.06733818317 | G22: 11.41 | H22: 61.41 | I22: 0.1858003582 | M22: 0.278753601
C23: 2 | D23: 8 | E23: 108 | F23: 0.07407407407 | G23: 12.61 | H23: 62.61 | I23: 0.2014055263 | M23: 0.3010299957
C24: 2.1 | D24: 9.261 | E24: 114.261 | F24: 0.08105127734 | G24: 13.87 | H24: 63.87 | I24: 0.217159856 | M24: 0.3222192947
C25: 2.2 | D25: 10.648 | E25: 120.648 | F25: 0.0882567469 | G25: 15.19 | H25: 65.19 | I25: 0.233011198 | M25: 0.3424226808
C26: 2.3 | D26: 12.167 | E26: 127.167 | F26: 0.09567733767 | G26: 16.57 | H26: 66.57 | I26: 0.2489109208 | M26: 0.361727836
C27: 2.4 | D27: 13.824 | E27: 133.824 | F27: 0.1032998565 | G27: 18.01 | H27: 68.01 | I27: 0.2648139979 | M27: 0.3802112417
C28: 2.5 | D28: 15.625 | E28: 140.625 | F28: 0.1111111111 | G28: 19.51 | H28: 69.51 | I28: 0.280679039 | M28: 0.3979400087
C29: 2.6 | D29: 17.576 | E29: 147.576 | F29: 0.1190979563 | G29: 21.07 | H29: 71.07 | I29: 0.2964682707 | M29: 0.414973348
C30: 2.7 | D30: 19.683 | E30: 154.683 | F30: 0.1272473381 | G30: 22.69 | H30: 72.69 | I30: 0.3121474756 | M30: 0.4313637642
C31: 2.8 | D31: 21.952 | E31: 161.952 | F31: 0.1355463347 | G31: 24.37 | H31: 74.37 | I31: 0.3276858949 | M31: 0.4471580313
C32: 2.9 | D32: 24.389 | E32: 169.389 | F32: 0.1439821948 | G32: 26.11 | H32: 76.11 | I32: 0.343056103 | M32: 0.4623979979
C33: 3 | D33: 27 | E33: 177 | F33: 0.1525423729 | G33: 27.91 | H33: 77.91 | I33: 0.3582338596 | M33: 0.4771212547
C34: 3.1 | D34: 29.791 | E34: 184.791 | F34: 0.1612145613 | G34: 29.77 | H34: 79.77 | I34: 0.3731979441 | M34: 0.4913616938
C35: 3.2 | D35: 32.768 | E35: 192.768 | F35: 0.1699867198 | G35: 31.69 | H35: 81.69 | I35: 0.3879299792 | M35: 0.5051499783
C36: 3.3 | D36: 35.937 | E36: 200.937 | F36: 0.1788471013 | G36: 33.67 | H36: 83.67 | I36: 0.4024142464 | M36: 0.5185139399
C37: 3.4 | D37: 39.304 | E37: 209.304 | F37: 0.1877842755 | G37: 35.71 | H37: 85.71 | I37: 0.4166374985 | M37: 0.531478917
C38: 3.5 | D38: 42.875 | E38: 217.875 | F38: 0.1967871486 | G38: 37.81 | H38: 87.81 | I38: 0.4305887712 | M38: 0.5440680444
C39: 3.6 | D39: 46.656 | E39: 226.656 | F39: 0.2058449809 | G39: 39.97 | H39: 89.97 | I39: 0.4442591975 | M39: 0.5563025008
C40: 3.7 | D40: 50.653 | E40: 235.653 | F40: 0.2149474015 | G40: 42.19 | H40: 92.19 | I40: 0.4576418267 | M40: 0.5682017241
C41: 3.8 | D41: 54.872 | E41: 244.872 | F41: 0.2240844196 | G41: 44.47 | H41: 94.47 | I41: 0.4707314491 | M41: 0.5797835966
C42: 3.9 | D42: 59.319 | E42: 254.319 | F42: 0.2332464346 | G42: 46.81 | H42: 96.81 | I42: 0.4835244293 | M42: 0.591064607
C43: 4 | D43: 64 | E43: 264 | F43: 0.2424242424 | G43: 49.21 | H43: 99.21 | I43: 0.4960185465 | M43: 0.6020599913
C44: 4.1 | D44: 68.921 | E44: 273.921 | F44: 0.2516090406 | G44: 51.67 | H44: 101.67 | I44: 0.5082128455 | M44: 0.6127838567
C45: 4.2 | D45: 74.088 | E45: 284.088 | F45: 0.2607924305 | G45: 54.19 | H45: 104.19 | I45: 0.5201074959 | M45: 0.6232492904
C46: 4.3 | D46: 79.507 | E46: 294.507 | F46: 0.2699664185 | G46: 56.77 | H46: 106.77 | I46: 0.5317036621 | M46: 0.6334684556
C47: 4.4 | D47: 85.184 | E47: 305.184 | F47: 0.2791234141 | G47: 59.41 | H47: 109.41 | I47: 0.5430033818 | M47: 0.6434526765
C48: 4.5 | D48: 91.125 | E48: 316.125 | F48: 0.2882562278 | G48: 62.11 | H48: 112.11 | I48: 0.554009455 | M48: 0.6532125138
C49: 4.6 | D49: 97.336 | E49: 327.336 | F49: 0.2973580663 | G49: 64.87 | H49: 114.87 | I49: 0.5647253417 | M49: 0.6627578317
C50: 4.7 | D50: 103.823 | E50: 338.823 | F50: 0.3064225274 | G50: 67.69 | H50: 117.69 | I50: 0.5751550684 | M50: 0.6720978579
C51: 4.8 | D51: 110.592 | E51: 350.592 | F51: 0.3154435926 | G51: 70.57 | H51: 120.57 | I51: 0.5853031434 | M51: 0.6812412374
C52: 4.9 | D52: 117.649 | E52: 362.649 | F52: 0.3244156195 | G52: 73.51 | H52: 123.51 | I52: 0.5951744798 | M52: 0.69019608
C53: 5 | D53: 125 | E53: 375 | F53: 0.3333333333 | G53: 76.51 | H53: 126.51 | I53: 0.6047743261 | M53: 0.6989700043
C54: 5.1 | D54: 132.651 | E54: 387.651 | F54: 0.3421918169 | G54: 79.57 | H54: 129.57 | I54: 0.6141082041 | M54: 0.7075701761
C55: 5.2 | D55: 140.608 | E55: 400.608 | F55: 0.3509865005 | G55: 82.69 | H55: 132.69 | I55: 0.6231818524 | M55: 0.7160033436
C56: 5.3 | D56: 148.877 | E56: 413.877 | F56: 0.3597131515 | G56: 85.87 | H56: 135.87 | I56: 0.6320011776 | M56: 0.7242758696
C57: 5.4 | D57: 157.464 | E57: 427.464 | F57: 0.3683678626 | G57: 89.11 | H57: 139.11 | I57: 0.640572209 | M57: 0.7323937598
C58: 5.5 | D58: 166.375 | E58: 441.375 | F58: 0.3769470405 | G58: 92.41 | H58: 142.41 | I58: 0.6489010603 | M58: 0.7403626895
C59: 5.6 | D59: 175.616 | E59: 455.616 | F59: 0.3854473943 | G59: 95.77 | H59: 145.77 | I59: 0.6569938945 | M59: 0.748188027
C60: 5.7 | D60: 185.193 | E60: 470.193 | F60: 0.3938659231 | G60: 99.19 | H60: 149.19 | I60: 0.6648568939 | M60: 0.7558748557
C61: 5.8 | D61: 195.112 | E61: 485.112 | F61: 0.4021999044 | G61: 102.67 | H61: 152.67 | I61: 0.6724962337 | M61: 0.7634279936
C62: 5.9 | D62: 205.379 | E62: 500.379 | F62: 0.4104468813 | G62: 106.21 | H62: 156.21 | I62: 0.679918059 | M62: 0.7708520116
C63: 6 | D63: 216 | E63: 516 | F63: 0.4186046512 | G63: 109.81 | H63: 159.81 | I63: 0.6871284651 | M63: 0.7781512504
C64: 6.1 | D64: 226.981 | E64: 531.981 | F64: 0.4266712533 | G64: 113.47 | H64: 163.47 | I64: 0.6941334801 | M64: 0.785329835
C65: 6.2 | D65: 238.328 | E65: 548.328 | F65: 0.434644957 | G65: 117.19 | H65: 167.19 | I65: 0.7009390514 | M65: 0.7923916895
C66: 6.3 | D66: =x^3 -> 250.047 | E66: =x^3+50*x -> 565.047 | F66: 0.4425242502 | G66: 120.97 | H66: 170.97 | I66: 0.7075510323 | M66: 0.7993405495
C67: 6.4 | D67: 262.144 | E67: 582.144 | F67: 0.4503078276 | G67: =(D68-D67)/dx -> 124.81 | H67: =(E68-E67)/dx -> 174.81 | I67: 0.713975173 | M67: =LOG(C67) -> 0.806179974
C68: =C67+dx -> 6.5 | D68: 274.625 | E68: 599.625 | F68: =D68/E68 -> 0.4579945799 | G68: 128.71 | H68: 178.71 | I68: =G68/H68 -> 0.7202171115 | M68: 0.8129133566
C69: 6.6 | D69: 287.496 | E69: 617.496 | F69: 0.4655835827 | G69: 132.67 | H69: 182.67 | I69: 0.7262823671 | M69: 0.8195439355
C70: 6.7 | D70: 300.763 | E70: 635.763 | F70: 0.4730740858 | G70: 136.69 | H70: 186.69 | I70: 0.7321763351 | M70: 0.8260748027
C71: 6.8 | D71: 314.432 | E71: 654.432 | F71: 0.4804655029 | G71: 140.77 | H71: 190.77 | I71: 0.7379042826 | M71: 0.8325089127
C72: 6.9 | D72: 328.509 | E72: 673.509 | F72: 0.4877574019 | G72: 144.91 | H72: 194.91 | I72: 0.7434713457 | M72: 0.8388490907
C73: 7 | D73: 343 | E73: 693 | F73: 0.4949494949 | G73: 149.11 | H73: 199.11 | I73: 0.7488825272 | M73: 0.84509804
C74: 7.1 | D74: 357.911 | E74: 712.911 | F74: 0.5020416293 | G74: 153.37 | H74: 203.37 | I74: 0.7541426956 | M74: 0.8512583487
C75: 7.2 | D75: 373.248 | E75: 733.248 | F75: 0.5090337785 | G75: 157.69 | H75: 207.69 | I75: 0.7592565843 | M75: 0.8573324964
C76: 7.3 | D76: 389.017 | E76: 754.017 | F76: 0.5159260335 | G76: 162.07 | H76: 212.07 | I76: 0.7642287924 | M76: 0.8633228601
C77: 7.4 | D77: 405.224 | E77: 775.224 | F77: 0.5227185949 | G77: 166.51 | H77: 216.51 | I77: 0.7690637846 | M77: 0.8692317197
C78: 7.5 | D78: 421.875 | E78: 796.875 | F78: 0.5294117647 | G78: 171.01 | H78: 221.01 | I78: 0.7737658929 | M78: 0.8750612634
C79: 7.6 | D79: 438.976 | E79: 818.976 | F79: 0.5360059391 | G79: 175.57 | H79: 225.57 | I79: 0.7783393182 | M79: 0.8808135923
C80: 7.7 | D80: 456.533 | E80: 841.533 | F80: 0.5425016012 | G80: 180.19 | H80: 230.19 | I80: 0.7827881315 | M80: 0.8864907252
C81: 7.8 | D81: 474.552 | E81: 864.552 | F81: 0.5488993143 | G81: 184.87 | H81: 234.87 | I81: 0.7871162771 | M81: 0.8920946027
C82: 7.9 | D82: 493.039 | E82: 888.039 | F82: 0.5551997153 | G82: 189.61 | H82: 239.61 | I82: 0.791327574 | M82: 0.8976270913
C83: 8 | D83: 512 | E83: 912 | F83: 0.5614035088 | G83: 194.41 | H83: 244.41 | I83: 0.7954257191 | M83: 0.903089987
C84: 8.1 | D84: 531.441 | E84: 936.441 | F84: 0.5675114609 | G84: 199.27 | H84: 249.27 | I84: 0.7994142897 | M84: 0.9084850189
C85: 8.2 | D85: 551.368 | E85: 961.368 | F85: 0.5735243944 | G85: 204.19 | H85: 254.19 | I85: 0.8032967465 | M85: 0.9138138524
C86: 8.3 | D86: 571.787 | E86: 986.787 | F86: 0.5794431828 | G86: 209.17 | H86: 259.17 | I86: 0.8070764363 | M86: 0.9190780924
C87: 8.4 | D87: 592.704 | E87: 1012.704 | F87: 0.5852687459 | G87: 214.21 | H87: 264.21 | I87: 0.8107565951 | M87: 0.9242792861
C88: 8.5 | D88: 614.125 | E88: 1039.125 | F88: 0.591002045 | G88: 219.31 | H88: 269.31 | I88: 0.8143403513 | M88: 0.9294189257
C89: 8.6 | D89: 636.056 | E89: 1066.056 | F89: 0.5966440787 | G89: 224.47 | H89: 274.47 | I89: 0.8178307283 | M89: 0.9344984512
C90: 8.7 | D90: 658.503 | E90: 1093.503 | F90: 0.6021958787 | G90: 229.69 | H90: 279.69 | I90: 0.8212306482 | M90: 0.9395192526
C91: 8.8 | D91: 681.472 | E91: 1121.472 | F91: 0.607658506 | G91: 234.97 | H91: 284.97 | I91: 0.8245429343 | M91: 0.9444826722
C92: 8.9 | D92: 704.969 | E92: 1149.969 | F92: 0.613033047 | G92: 240.31 | H92: 290.31 | I92: 0.8277703145 | M92: 0.9493900066
C93: 9 | D93: 729 | E93: 1179 | F93: 0.6183206107 | G93: 245.71 | H93: 295.71 | I93: 0.8309154239 | M93: 0.9542425094
C94: 9.1 | D94: 753.571 | E94: 1208.571 | F94: 0.6235223251 | G94: 251.17 | H94: 301.17 | I94: 0.8339808082 | M94: 0.9590413923
C95: 9.2 | D95: 778.688 | E95: 1238.688 | F95: 0.6286393345 | G95: 256.69 | H95: 306.69 | I95: 0.8369689263 | M95: 0.9637878273
C96: 9.3 | D96: 804.357 | E96: 1269.357 | F96: 0.6336727965 | G96: 262.27 | H96: 312.27 | I96: 0.8398821533 | M96: 0.9684829486
C97: 9.4 | D97: 830.584 | E97: 1300.584 | F97: 0.6386238797 | G97: 267.91 | H97: 317.91 | I97: 0.8427227832 | M97: 0.9731278536
C98: 9.5 | D98: 857.375 | E98: 1332.375 | F98: 0.6434937611 | G98: 273.61 | H98: 323.61 | I98: 0.8454930317 | M98: 0.9777236053
C99: 9.6 | D99: 884.736 | E99: 1364.736 | F99: 0.6482836241 | G99: 279.37 | H99: 329.37 | I99: 0.848195039 | M99: 0.982271233
C100: 9.7 | D100: 912.673 | E100: 1397.673 | F100: 0.6529946561 | G100: 285.19 | H100: 335.19 | I100: 0.850830872 | M100: 0.9867717343
C101: 9.8 | D101: 941.192 | E101: 1431.192 | F101: 0.6576280471 | G101: 291.07 | H101: 341.07 | I101: 0.8534025273 | M101: 0.9912260757
C102: 9.9 | D102: 970.299 | E102: 1465.299 | F102: 0.6621849875 | G102: 297.01 | H102: 347.01 | I102: 0.8559119334 | M102: 0.9956351946
C103: 10 | D103: 1000 | E103: 1500 | F103: 0.6666666667 | G103: 303.01 | H103: 353.01 | I103: 0.8583609529 | M103: 1
C104: 10.1 | D104: 1030.301 | E104: 1535.301 | F104: 0.6710742714 | G104: 309.07 | H104: 359.07 | I104: 0.8607513855 | M104: 1.004321374
C105: 10.2 | D105: 1061.208 | E105: 1571.208 | F105: 0.6754089847 | G105: 315.19 | H105: 365.19 | I105: 0.8630849695 | M105: 1.008600172
C106: 10.3 | D106: 1092.727 | E106: 1607.727 | F106: 0.6796719841 | G106: 321.37 | H106: 371.37 | I106: 0.8653633842 | M106: 1.012837225
C107: 10.4 | D107: 1124.864 | E107: 1644.864 | F107: 0.6838644411 | G107: 327.61 | H107: 377.61 | I107: 0.8675882524 | M107: 1.017033339
C108: 10.5 | D108: 1157.625 | E108: 1682.625 | F108: 0.6879875195 | G108: 333.91 | H108: 383.91 | I108: 0.8697611419 | M108: 1.021189299
C109: 10.6 | D109: 1191.016 | E109: 1721.016 | F109: 0.692042375 | G109: 340.27 | H109: 390.27 | I109: 0.8718835678 | M109: 1.025305865
C110: 10.7 | D110: 1225.043 | E110: 1760.043 | F110: 0.6960301538 | G110: 346.69 | H110: 396.69 | I110: 0.8739569941 | M110: 1.029383778
C111: 10.8 | D111: 1259.712 | E111: 1799.712 | F111: 0.6999519923 | G111: 353.17 | H111: 403.17 | I111: 0.875982836 | M111: 1.033423755
C112: 10.9 | D112: 1295.029 | E112: 1840.029 | F112: 0.7038090161 | G112: 359.71 | H112: 409.71 | I112: 0.8779624613 | M112: 1.037426498
C113: 11 | D113: 1331 | E113: 1881 | F113: 0.7076023392 | G113: 366.31 | H113: 416.31 | I113: 0.879897192 | M113: 1.041392685
C114: 11.1 | D114: 1367.631 | E114: 1922.631 | F114: 0.7113330639 | G114: 372.97 | H114: 422.97 | I114: 0.8817883065 | M114: 1.045322979
C115: 11.2 | D115: 1404.928 | E115: 1964.928 | F115: 0.71500228 | G115: 379.69 | H115: 429.69 | I115: 0.8836370407 | M115: 1.049218023
C116: 11.3 | D116: 1442.897 | E116: 2007.897 | F116: 0.7186110642 | G116: 386.47 | H116: 436.47 | I116: 0.8854445895 | M116: 1.053078443
C117: 11.4 | D117: 1481.544 | E117: 2051.544 | F117: 0.7221604801 | G117: 393.31 | H117: 443.31 | I117: 0.8872121089 | M117: 1.056904851
C118: 11.5 | D118: 1520.875 | E118: 2095.875 | F118: 0.7256515775 | G118: 400.21 | H118: 450.21 | I118: 0.8889407166 | M118: 1.06069784
C119: 11.6 | D119: 1560.896 | E119: 2140.896 | F119: 0.7290853923 | G119: 407.17 | H119: 457.17 | I119: 0.8906314938 | M119: 1.064457989
C120: 11.7 | D120: 1601.613 | E120: 2186.613 | F120: 0.7324629461 | G120: 414.19 | H120: 464.19 | I120: 0.8922854865 | M120: 1.068185862
C121: 11.8 | D121: 1643.032 | E121: 2233.032 | F121: 0.7357852462 | G121: 421.27 | H121: 471.27 | I121: 0.893903707 | M121: 1.071882007
C122: 11.9 | D122: 1685.159 | E122: 2280.159 | F122: 0.7390532853 | G122: 428.41 | H122: 478.41 | I122: 0.8954871345 | M122: 1.075546961
C123: 12 | D123: 1728 | E123: 2328 | F123: 0.7422680412 | G123: 435.61 | H123: 485.61 | I123: 0.8970367167 | M123: 1.079181246
C124: 12.1 | D124: 1771.561 | E124: 2376.561 | F124: 0.7454304771 | G124: 442.87 | H124: 492.87 | I124: 0.8985533711 | M124: 1.08278537
C125: 12.2 | D125: 1815.848 | E125: 2425.848 | F125: 0.7485415409 | G125: 450.19 | H125: 500.19 | I125: 0.9000379856 | M125: 1.086359831
C126: 12.3 | D126: 1860.867 | E126: 2475.867 | F126: 0.751602166 | G126: 457.57 | H126: 507.57 | I126: 0.9014914199 | M126: 1.089905111
C127: 12.4 | D127: 1906.624 | E127: 2526.624 | F127: 0.7546132705 | G127: 465.01 | H127: 515.01 | I127: 0.9029145065 | M127: 1.093421685
C128: 12.5 | D128: 1953.125 | E128: 2578.125 | F128: 0.7575757576 | G128: 472.51 | H128: 522.51 | I128: 0.9043080515 | M128: 1.096910013
C129: 12.6 | D129: 2000.376 | E129: 2630.376 | F129: 0.7604905154 | G129: 480.07 | H129: 530.07 | I129: 0.9056728357 | M129: 1.100370545
C130: 12.7 | D130: =x^3 -> 2048.383 | E130: =x^3+50*x -> 2683.383 | F130: 0.7633584173 | G130: 487.69 | H130: 537.69 | I130: 0.9070096152 | M130: 1.103803721
C131: 12.8 | D131: 2097.152 | E131: 2737.152 | F131: 0.7661803217 | G131: =(D132-D131)/dx -> 495.37 | H131: =(E132-E131)/dx -> 545.37 | I131: 0.9083191228 | M131: =LOG(C131) -> 1.10720997
C132: =C131+dx -> 12.9 | D132: 2146.689 | E132: 2791.689 | F132: =D132/E132 -> 0.7689570722 | G132: 503.11 | H132: 553.11 | I132: =G132/H132 -> 0.9096020683 | M132: 1.11058971
C133: 13 | D133: 2197 | E133: 2847 | F133: 0.7716894977 | G133: 510.91 | H133: 560.91 | I133: 0.9108591396 | M133: 1.113943352
C134: 13.1 | D134: 2248.091 | E134: 2903.091 | F134: 0.7743784125 | G134: 518.77 | H134: 568.77 | I134: 0.9120910034 | M134: 1.117271296
C135: 13.2 | D135: 2299.968 | E135: 2959.968 | F135: 0.7770246165 | G135: 526.69 | H135: 576.69 | I135: 0.9132983058 | M135: 1.120573931
C136: 13.3 | D136: 2352.637 | E136: 3017.637 | F136: 0.7796288951 | G136: 534.67 | H136: 584.67 | I136: 0.9144816734 | M136: 1.123851641
C137: 13.4 | D137: 2406.104 | E137: 3076.104 | F137: 0.7821920195 | G137: 542.71 | H137: 592.71 | I137: 0.9156417135 | M137: 1.127104798
C138: 13.5 | D138: 2460.375 | E138: 3135.375 | F138: 0.784714747 | G138: 550.81 | H138: 600.81 | I138: 0.916779015 | M138: 1.130333768
C139: 13.6 | D139: 2515.456 | E139: 3195.456 | F139: 0.7871978209 | G139: 558.97 | H139: 608.97 | I139: 0.9178941491 | M139: 1.133538908
C140: 13.7 | D140: 2571.353 | E140: 3256.353 | F140: 0.7896419706 | G140: 567.19 | H140: 617.19 | I140: 0.9189876699 | M140: 1.136720567
C141: 13.8 | D141: 2628.072 | E141: 3318.072 | F141: 0.7920479122 | G141: 575.47 | H141: 625.47 | I141: 0.9200601148 | M141: 1.139879086
C142: 13.9 | D142: 2685.619 | E142: 3380.619 | F142: 0.794416348 | G142: 583.81 | H142: 633.81 | I142: 0.9211120052 | M142: 1.1430148
C143: 14 | D143: 2744 | E143: 3444 | F143: 0.7967479675 | G143: 592.21 | H143: 642.21 | I143: 0.922143847 | M143: 1.146128036
C144: 14.1 | D144: 2803.221 | E144: 3508.221 | F144: 0.7990434468 | G144: 600.67 | H144: 650.67 | I144: 0.9231561314 | M144: 1.149219113
C145: 14.2 | D145: 2863.288 | E145: 3573.288 | F145: 0.8013034494 | G145: 609.19 | H145: 659.19 | I145: 0.9241493348 | M145: 1.152288344
C146: 14.3 | D146: 2924.207 | E146: 3639.207 | F146: 0.8035286259 | G146: 617.77 | H146: 667.77 | I146: 0.9251239199 | M146: 1.155336037
C147: 14.4 | D147: 2985.984 | E147: 3705.984 | F147: 0.8057196145 | G147: 626.41 | H147: 676.41 | I147: 0.9260803359 | M147: 1.158362492
C148: 14.5 | D148: 3048.625 | E148: 3773.625 | F148: 0.8078770413 | G148: 635.11 | H148: 685.11 | I148: 0.9270190188 | M148: 1.161368002
C149: 14.6 | D149: 3112.136 | E149: 3842.136 | F149: 0.81000152 | G149: 643.87 | H149: 693.87 | I149: 0.9279403923 | M149: 1.164352856
C150: 14.7 | D150: 3176.523 | E150: 3911.523 | F150: 0.8120936525 | G150: 652.69 | H150: 702.69 | I150: 0.9288448676 | M150: 1.167317335
C151: 14.8 | D151: 3241.792 | E151: 3981.792 | F151: 0.8141540291 | G151: 661.57 | H151: 711.57 | I151: 0.9297328443 | M151: 1.170261715
C152: 14.9 | D152: 3307.949 | E152: 4052.949 | F152: 0.8161832286 | G152: 670.51 | H152: 720.51 | I152: 0.9306047106 | M152: 1.173186268
C153: 15 | D153: 3375 | E153: 4125 | F153: 0.8181818182 | G153: 679.51 | H153: 729.51 | I153: 0.9314608436 | M153: 1.176091259
C154: 15.1 | D154: 3442.951 | E154: 4197.951 | F154: 0.8201503543 | G154: 688.57 | H154: 738.57 | I154: 0.9323016099 | M154: 1.178976947
C155: 15.2 | D155: 3511.808 | E155: 4271.808 | F155: 0.8220893823 | G155: 697.69 | H155: 747.69 | I155: 0.9331273656 | M155: 1.181843588
C156: 15.3 | D156: 3581.577 | E156: 4346.577 | F156: 0.8239994368 | G156: 706.87 | H156: 756.87 | I156: 0.9339384571 | M156: 1.184691431
C157: 15.4 | D157: 3652.264 | E157: 4422.264 | F157: 0.8258810419 | G157: 716.11 | H157: 766.11 | I157: 0.9347352208 | M157: 1.187520721
C158: 15.5 | D158: 3723.875 | E158: 4498.875 | F158: 0.8277347115 | G158: 725.41 | H158: 775.41 | I158: 0.935517984 | M158: 1.190331698
C159: 15.6 | D159: 3796.416 | E159: 4576.416 | F159: 0.829560949 | G159: 734.77 | H159: 784.77 | I159: 0.936287065 | M159: 1.193124598
C160: 15.7 | D160: 3869.893 | E160: 4654.893 | F160: 0.8313602482 | G160: 744.19 | H160: 794.19 | I160: 0.9370427731 | M160: 1.195899652
C161: 15.8 | D161: 3944.312 | E161: 4734.312 | F161: 0.833133093 | G161: 753.67 | H161: 803.67 | I161: 0.9377854094 | M161: 1.198657087
C162: 15.9 | D162: 4019.679 | E162: 4814.679 | F162: 0.8348799577 | G162: 763.21 | H162: 813.21 | I162: 0.9385152667 | M162: 1.201397124
C163: 16 | D163: 4096 | E163: 4896 | F163: 0.8366013072 | G163: 772.81 | H163: 822.81 | I163: 0.9392326296 | M163: 1.204119983
C164: 16.1 | D164: 4173.281 | E164: 4978.281 | F164: 0.8382975971 | G164: 782.47 | H164: 832.47 | I164: 0.9399377755 | M164: 1.206825876
C165: 16.2 | D165: 4251.528 | E165: 5061.528 | F165: 0.8399692741 | G165: 792.19 | H165: 842.19 | I165: 0.940630974 | M165: 1.209515015
C166: 16.3 | D166: 4330.747 | E166: 5145.747 | F166: 0.841616776 | G166: 801.97 | H166: 851.97 | I166: 0.9413124875 | M166: 1.212187604
C167: 16.4 | D167: 4410.944 | E167: 5230.944 | F167: 0.8432405317 | G167: 811.81 | H167: 861.81 | I167: 0.9419825716 | M167: 1.214843848
C168: 16.5 | D168: 4492.125 | E168: 5317.125 | F168: 0.844840962 | G168: 821.71 | H168: 871.71 | I168: 0.9426414748 | M168: 1.217483944
C169: 16.6 | D169: 4574.296 | E169: 5404.296 | F169: 0.8464184789 | G169: 831.67 | H169: 881.67 | I169: 0.9432894394 | M169: 1.220108088
C170: 16.7 | D170: 4657.463 | E170: 5492.463 | F170: 0.8479734866 | G170: 841.69 | H170: 891.69 | I170: 0.943926701 | M170: 1.222716471
C171: 16.8 | D171: 4741.632 | E171: 5581.632 | F171: 0.8495063809 | G171: 851.77 | H171: 901.77 | I171: 0.9445534892 | M171: 1.225309282
C172: 16.9 | D172: 4826.809 | E172: 5671.809 | F172: 0.8510175501 | G172: 861.91 | H172: 911.91 | I172: 0.9451700277 | M172: 1.227886705
C173: 17 | D173: 4913 | E173: 5763 | F173: 0.8525073746 | G173: 872.11 | H173: 922.11 | I173: 0.9457765343 | M173: 1.230448921
C174: 17.1 | D174: 5000.211 | E174: 5855.211 | F174: 0.8539762273 | G174: 882.37 | H174: 932.37 | I174: 0.9463732209 | M174: 1.23299611
C175: 17.2 | D175: 5088.448 | E175: 5948.448 | F175: 0.8554244737 | G175: 892.69 | H175: 942.69 | I175: 0.9469602945 | M175: 1.235528447
C176: 17.3 | D176: 5177.717 | E176: 6042.717 | F176: 0.8568524722 | G176: 903.07 | H176: 953.07 | I176: 0.9475379563 | M176: 1.238046103
C177: 17.4 | D177: 5268.024 | E177: 6138.024 | F177: 0.8582605738 | G177: 913.51 | H177: 963.51 | I177: 0.9481064026 | M177: 1.240549248
C178: 17.5 | D178: 5359.375 | E178: 6234.375 | F178: 0.8596491228 | G178: 924.01 | H178: 974.01 | I178: 0.9486658248 | M178: 1.243038049
C179: 17.6 | D179: 5451.776 | E179: 6331.776 | F179: 0.8610184567 | G179: 934.57 | H179: 984.57 | I179: 0.9492164092 | M179: 1.245512668
C180: 17.7 | D180: 5545.233 | E180: 6430.233 | F180: 0.8623689064 | G180: 945.19 | H180: 995.19 | I180: 0.9497583376 | M180: 1.247973266
C181: 17.8 | D181: 5639.752 | E181: 6529.752 | F181: 0.863700796 | G181: 955.87 | H181: 1005.87 | I181: 0.9502917872 | M181: 1.250420002
C182: 17.9 | D182: 5735.339 | E182: 6630.339 | F182: 0.8650144435 | G182: 966.61 | H182: 1016.61 | I182: 0.9508169308 | M182: 1.252853031
C183: 18 | D183: 5832 | E183: 6732 | F183: 0.8663101604 | G183: 977.41 | H183: 1027.41 | I183: 0.9513339368 | M183: 1.255272505
C184: 18.1 | D184: 5929.741 | E184: 6834.741 | F184: 0.8675882524 | G184: 988.27 | H184: 1038.27 | I184: 0.9518429696 | M184: 1.257678575
C185: 18.2 | D185: 6028.568 | E185: 6938.568 | F185: 0.868849019 | G185: 999.19 | H185: 1049.19 | I185: 0.9523441893 | M185: 1.260071388
C186: 18.3 | D186: 6128.487 | E186: 7043.487 | F186: 0.8700927538 | G186: 1010.17 | H186: 1060.17 | I186: 0.9528377524 | M186: 1.26245109
C187: 18.4 | D187: 6229.504 | E187: 7149.504 | F187: 0.8713197447 | G187: 1021.21 | H187: 1071.21 | I187: 0.9533238114 | M187: 1.264817823
C188: 18.5 | D188: 6331.625 | E188: 7256.625 | F188: 0.8725302741 | G188: 1032.31 | H188: 1082.31 | I188: 0.953802515 | M188: 1.267171728
C189: 18.6 | D189: 6434.856 | E189: 7364.856 | F189: 0.8737246186 | G189: 1043.47 | H189: 1093.47 | I189: 0.9542740084 | M189: 1.269512944
C190: 18.7 | D190: 6539.203 | E190: 7474.203 | F190: 0.8749030499 | G190: 1054.69 | H190: 1104.69 | I190: 0.9547384334 | M190: 1.271841607
C191: 18.8 | D191: 6644.672 | E191: 7584.672 | F191: 0.8760658338 | G191: 1065.97 | H191: 1115.97 | I191: 0.9551959282 | M191: 1.274157849
C192: 18.9 | D192: 6751.269 | E192: 7696.269 | F192: 0.8772132315 | G192: 1077.31 | H192: 1127.31 | I192: 0.9556466278 | M192: 1.276461804
C193: 19 | D193: 6859 | E193: 7809 | F193: 0.8783454988 | G193: 1088.71 | H193: 1138.71 | I193: 0.956090664 | M193: 1.278753601
C194: 19.1 | D194: =x^3 -> 6967.871 | E194: =x^3+50*x -> 7922.871 | F194: 0.8794628866 | G194: 1100.17 | H194: 1150.17 | I194: 0.9565281654 | M194: 1.281033367
C195: 19.2 | D195: 7077.888 | E195: 8037.888 | F195: 0.8805656411 | G195: =(D196-D195)/dx -> 1111.69 | H195: =(E196-E195)/dx -> 1161.69 | I195: 0.9569592576 | M195: =LOG(C195) -> 1.283301229
C196: =C195+dx -> 19.3 | D196: 7189.057 | E196: 8154.057 | F196: =D196/E196 -> 0.8816540036 | G196: 1123.27 | H196: 1173.27 | I196: =G196/H196 -> 0.9573840633 | M196: 1.285557309
C197: 19.4 | D197: 7301.384 | E197: 8271.384 | F197: 0.8827282109 | G197: 1134.91 | H197: 1184.91 | I197: 0.9578027023 | M197: 1.28780173
C198: 19.5 | D198: 7414.875 | E198: 8389.875 | F198: 0.8837884951 | G198: 1146.61 | H198: 1196.61 | I198: 0.9582152915 | M198: 1.290034611
C199: 19.6 | D199: 7529.536 | E199: 8509.536 | F199: 0.8848350838 | G199: 1158.37 | H199: 1208.37 | I199: 0.9586219453 | M199: 1.292256071
C200: 19.7 | D200: 7645.373 | E200: 8630.373 | F200: 0.8858682006 | G200: 1170.19 | H200: 1220.19 | I200: 0.9590227751 | M200: 1.294466226
... 304 more rows

Sheet Defining Function
A1: Defining a Function in Excel
A3: Computers have very specific rules you must follow when defining a function. If you don't, the program will either not work at all or will work incorrectly.
A5: 1. The Variable used should be the one named in the instruction, usually x, though sometimes y, t, Q (for an angle theta),
A6: or even x and y (for a function of two variables).
A8: 2. Order of Operations: There five arithmetic operations, addition (+), subtraction (-), multiplication (*), division (/), and exponentiation or power (^). When computers see any of these operation symbols, they perform the indicated steps in a very particular order. First, the power is done. Second, products and quotients of adjacent terms is done. Third, and last, sums and differences of adjacent terms are done. So, in 10*x^3 + 5*x – 7, say with x = 2, the first pass only calculates 2^3 and ignores the multiplications and the sums and differences to calculate 2^3 = 8. The second pass looks at 10*8 + 5*2 – 7 and only does the multiplications, so it produces 80 + 10 - 7. The third pass looks at the +’s and –‘s to produce 80 + 10 – 7 = 83.
A10: 3. Parentheses If you need an operation involving more than two adjacent terms, as in Ö4^3 + 6^2, the computer would take the square root of 4 to produce 2^3 + 6^2; it would then cube the 2 and square the 6 to produce 8 + 36; and finally it would add the 8 and the 36 to get 44. If you actually wanted the square root of the entire expression, you would need to use parentheses, as in Ö(4^3 + 6^2) to tell the computer to do all the operations inside the parentheses before taking the square root. Therefore, it would calculate (4^3 + 6^2) = 64 + 36 = 100 and then take the square root of Ö100 = 10.
A12: 4. Built-In Functions Computer programs have built-in functions for most common algebraic functions. In Excel, the square root function is denoted by SQRT(…), so SQRT(100) = 10. Alternatively, you could enter it as 100^.5 or 100^(1/2); notice that parentheses are needed to have the ½ done first. The common trig functions are SIN (…), COS (…), and TAN (…), where the arguments are automatically interpreted as being in radians, not degrees. The logarithm to the base 10 is represented by LOG (…) and the logarithm with the base e, known as the natural logarithm, is LN (…). The corresponding exponential function with base e is EXP (x). If x is the variable, then each of these would be SQRT (x), SIN (x), COS (x), TAN (x), LOG (x) (for log with base 10 ), LN (x) (for log with base e ), and EXP (x).

Sheet Sheet3
